[Event "FIDE Women's Grand Swiss 2023"]
[Site "Villa Marina, Douglas, Isle of Man, Isle Of Man"]
[Date "2023.10.28"]
[Round "4.5"]
[White "Kamalidenova, Meruert"]
[Black "Shuvalova, Polina"]
[Result "1-0"]
[TimeControl "40/90 + 30 + 30s/move"]
[WhiteFideId "13712802"]
[BlackFideId "24171760"]
[WhiteElo "2351"]
[BlackElo "2506"]

1. e4 {[%clk 01:30:55]} {[%emt 00:00:03]} e5 {[%clk 01:30:56]} {[%emt
00:00:05]} 2. Nf3 {[%clk 01:31:18]} {[%emt 00:00:07]} Nc6 {[%clk 01:31:23]}
{[%emt 00:00:04]} 3. Bb5 {[%clk 01:31:43]} {[%emt 00:00:05]} a6 {[%clk
01:31:50]} {[%emt 00:00:03]} 4. Ba4 {[%clk 01:32:08]} {[%emt 00:00:05]} Nf6
{[%clk 01:32:16]} {[%emt 00:00:04]} 5. O-O {[%clk 01:32:31]} {[%emt 00:00:06]}
Be7 {[%clk 01:32:44]} {[%emt 00:00:03]} 6. d3 {[%clk 01:32:49]} {[%emt
00:00:11]} b5 {[%clk 01:33:04]} {[%emt 00:00:10]} 7. Bb3 {[%clk 01:33:13]}
{[%emt 00:00:06]} d6 {[%clk 01:33:28]} {[%emt 00:00:06]} 8. c3 {[%clk
01:33:32]} {[%emt 00:00:11]} O-O {[%clk 01:33:45]} {[%emt 00:00:12]} 9. h3
{[%clk 01:33:54]} {[%emt 00:00:08]} h6 {[%clk 01:32:46]} {[%emt 00:01:30]} 10.
Re1 {[%clk 01:33:36]} {[%emt 00:00:48]} Re8 {[%clk 01:32:40]} {[%emt 00:00:37]}
11. Nbd2 {[%clk 01:33:35]} {[%emt 00:00:30]} Bf8 {[%clk 01:32:51]} {[%emt
00:00:19]} 12. Nf1 {[%clk 01:33:22]} {[%emt 00:00:43]} Na5 {[%clk 01:33:02]}
{[%emt 00:00:19]} 13. Bc2 {[%clk 01:33:12]} {[%emt 00:00:40]} c5 {[%clk
01:33:24]} {[%emt 00:00:07]} 14. Ng3 {[%clk 01:30:47]} {[%emt 00:02:55]} Bb7
{[%clk 01:30:28]} {[%emt 00:03:27]} 15. d4 {[%clk 01:29:22]} {[%emt 00:01:55]}
exd4 {[%clk 01:19:29]} {[%emt 00:11:29]} 16. cxd4 {[%clk 01:29:35]} {[%emt
00:00:17]} cxd4 {[%clk 01:16:46]} {[%emt 00:03:14]} 17. Nxd4 {[%clk 01:29:46]}
{[%emt 00:00:18]} Rc8 {[%clk 01:16:41]} {[%emt 00:00:35]} 18. b3 {[%clk
01:24:34]} {[%emt 00:05:42]} d5 {[%clk 01:02:37]} {[%emt 00:14:34]} 19. e5
{[%clk 01:19:59]} {[%emt 00:05:05]} Ne4 {[%clk 01:03:02]} {[%emt 00:00:05]} 20.
Ngf5 {[%clk 01:07:25]} {[%emt 00:13:04]} Rxe5 {[%clk 00:54:38]} {[%emt
00:08:54]} 21. Bf4 {[%clk 01:04:44]} {[%emt 00:03:11]} Re8 {[%clk 00:53:14]}
{[%emt 00:01:54]} 22. Qg4 {[%clk 01:02:58]} {[%emt 00:02:16]} Kh8 {[%clk
00:51:15]} {[%emt 00:02:30]} 23. f3 {[%clk 00:56:26]} {[%emt 00:07:02]} Nf6
{[%clk 00:48:30]} {[%emt 00:03:15]} 24. Rxe8 {[%clk 00:51:59]} {[%emt
00:04:57]} Nxe8 {[%clk 00:41:59]} {[%emt 00:07:00]} 25. Re1 {[%clk 00:49:16]}
{[%emt 00:03:12]} Nf6 {[%clk 00:40:57]} {[%emt 00:01:33]} 26. Qh4 {[%clk
00:48:37]} {[%emt 00:01:09]} Qb6 {[%clk 00:31:17]} {[%emt 00:10:11]} 27. Kh1
{[%clk 00:30:13]} {[%emt 00:18:54]} Ng8 {[%clk 00:24:34]} {[%emt 00:07:12]} 28.
Be5 {[%clk 00:27:04]} {[%emt 00:03:39]} f6 {[%clk 00:19:37]} {[%emt 00:05:27]}
29. Bg3 {[%clk 00:24:51]} {[%emt 00:02:43]} Nc6 {[%clk 00:19:31]} {[%emt
00:00:35]} 30. Qg4 {[%clk 00:22:47]} {[%emt 00:02:34]} Ne5 {[%clk 00:12:07]}
{[%emt 00:07:55]} 31. Rxe5 {[%clk 00:21:58]} {[%emt 00:01:20]} fxe5 {[%clk
00:09:32]} {[%emt 00:03:05]} 32. Bxe5 {[%clk 00:22:17]} {[%emt 00:00:10]} Nf6
{[%clk 00:05:40]} {[%emt 00:04:21]} 33. Qg6 {[%clk 00:22:24]} {[%emt 00:00:24]}
Rxc2 {[%clk 00:05:13]} {[%emt 00:00:57]} 34. Nxc2 {[%clk 00:22:17]} {[%emt
00:00:37]} Bc8 {[%clk 00:04:35]} {[%emt 00:01:08]} 35. Nxh6 {[%clk 00:21:35]}
{[%emt 00:01:12]} Nd7 {[%clk 00:03:13]} {[%emt 00:01:53]} 36. Qxb6 {[%clk
00:15:13]} {[%emt 00:06:52]} Nxb6 {[%clk 00:03:38]} {[%emt 00:00:04]} 37. Bd4
{[%clk 00:15:21]} {[%emt 00:00:22]} Nd7 {[%clk 00:02:35]} {[%emt 00:01:33]} 38.
Ne3 {[%clk 00:15:22]} {[%emt 00:00:29]} Bc5 {[%clk 00:02:10]} {[%emt 00:00:55]}
39. Nhf5 {[%clk 00:14:58]} {[%emt 00:00:54]} Kh7 {[%clk 00:01:54]} {[%emt
00:00:46]} 40. Kg1 {[%clk 00:13:48]} {[%emt 00:01:40]} g6 {[%clk 00:01:25]}
{[%emt 00:01:00]} 41. Bxc5 {[%clk 00:14:03]} {[%emt 00:00:15]} gxf5 {[%clk
00:01:38]} {[%emt 00:00:17]} 42. Bd4 {[%clk 00:14:25]} {[%emt 00:00:07]} Nf8
{[%clk 00:01:45]} {[%emt 00:00:23]} 43. Nxd5 {[%clk 00:14:44]} {[%emt
00:00:12]} Ne6 {[%clk 00:01:31]} {[%emt 00:00:44]} 44. Bb6 {[%clk 00:13:09]}
{[%emt 00:02:04]} Bb7 {[%clk 00:01:27]} {[%emt 00:00:34]} 45. Ne3 {[%clk
00:13:03]} {[%emt 00:00:36]} f4 {[%clk 00:27:32]} {[%emt 00:04:27]} 46. Ng4
{[%clk 00:42:43]} {[%emt 00:00:49]} Kg6 {[%clk 00:27:44]} {[%emt 00:00:18]} 47.
Kf2 {[%clk 00:43:06]} {[%emt 00:00:07]} Kh5 {[%clk 00:26:19]} {[%emt 00:01:55]}
48. Ba7 {[%clk 00:42:42]} {[%emt 00:00:54]} Kg5 {[%clk 00:25:13]} {[%emt
00:01:36]} 49. Bb8 {[%clk 00:42:32]} {[%emt 00:00:39]} a5 {[%clk 00:23:42]}
{[%emt 00:02:02]} 50. a3 {[%clk 00:41:15]} {[%emt 00:01:47]} b4 {[%clk
00:18:33]} {[%emt 00:05:39]} 51. axb4 {[%clk 00:40:44]} {[%emt 00:01:02]} axb4
{[%clk 00:19:01]} {[%emt 00:00:02]} 52. Bd6 {[%clk 00:41:05]} {[%emt 00:00:08]}
Bd5 {[%clk 00:19:27]} {[%emt 00:00:05]} 53. Bxb4 {[%clk 00:41:29]} {[%emt
00:00:07]} Bxb3 {[%clk 00:19:53]} {[%emt 00:00:03]} 54. g3 {[%clk 00:41:30]}
{[%emt 00:00:29]} fxg3+ {[%clk 00:18:32]} {[%emt 00:01:51]} 55. Kxg3 {[%clk
00:41:53]} {[%emt 00:00:06]} Ng7 {[%clk 00:14:51]} {[%emt 00:04:11]} 56. Bd2+
{[%clk 00:41:28]} {[%emt 00:00:55]} Kf5 {[%clk 00:14:04]} {[%emt 00:01:18]} 57.
Bc3 {[%clk 00:40:29]} {[%emt 00:01:28]} Nh5+ {[%clk 00:14:02]} {[%emt
00:00:33]} 58. Kh4 {[%clk 00:40:42]} {[%emt 00:00:17]} Nf4 {[%clk 00:14:18]}
{[%emt 00:00:14]} 59. Ba5 {[%clk 00:40:03]} {[%emt 00:01:09]} Ba4 {[%clk
00:14:12]} {[%emt 00:00:36]} 60. Bc7 {[%clk 00:40:16]} {[%emt 00:00:17]} Ne6
{[%clk 00:14:04]} {[%emt 00:00:38]} 61. Ne3+ {[%clk 00:40:06]} {[%emt
00:00:40]} Kf6 {[%clk 00:13:01]} {[%emt 00:01:33]} 62. Ba5 {[%clk 00:40:04]}
{[%emt 00:00:32]} Kg6 {[%clk 00:12:54]} {[%emt 00:00:37]} 63. Bc3 {[%clk
00:38:21]} {[%emt 00:02:13]} Bc6 {[%clk 00:13:20]} {[%emt 00:00:05]} 64. Kg4
{[%clk 00:38:20]} {[%emt 00:00:30]} Bd7 {[%clk 00:12:29]} {[%emt 00:01:22]} 65.
Kg3 {[%clk 00:38:26]} {[%emt 00:00:23]} Ng5 {[%clk 00:12:30]} {[%emt 00:00:30]}
66. h4 {[%clk 00:37:36]} {[%emt 00:01:20]} Nf7 {[%clk 00:12:16]} {[%emt
00:00:43]} 67. Ng4 {[%clk 00:36:26]} {[%emt 00:01:41]} Kf5 {[%clk 00:10:13]}
{[%emt 00:02:33]} 68. h5 {[%clk 00:35:45]} {[%emt 00:01:10]} Bc6 {[%clk
00:09:43]} {[%emt 00:01:00]} 69. f4 {[%clk 00:33:30]} {[%emt 00:02:45]} Be8
{[%clk 00:09:05]} {[%emt 00:01:08]} 70. h6 {[%clk 00:33:01]} {[%emt 00:00:58]}
Kg6 {[%clk 00:08:01]} {[%emt 00:01:35]} 71. h7 {[%clk 00:33:22]} {[%emt
00:00:09]} Kxh7 {[%clk 00:08:25]} {[%emt 00:00:06]} 72. Nf6+ {[%clk 00:33:48]}
{[%emt 00:00:04]} Kg6 {[%clk 00:08:52]} {[%emt 00:00:03]} 73. Nxe8 {[%clk
00:34:13]} {[%emt 00:00:05]} Kf5 {[%clk 00:07:43]} {[%emt 00:01:39]} 74. Ng7+
{[%clk 00:34:34]} {[%emt 00:00:09]} Kg6 {[%clk 00:08:00]} {[%emt 00:00:13]} 75.
Kf3 {[%clk 00:34:31]} {[%emt 00:00:32]} Nd6 {[%clk 00:07:21]} {[%emt 00:01:09]}
76. Kg4 {[%clk 00:34:37]} {[%emt 00:00:25]} Kf7 {[%clk 00:07:32]} {[%emt
00:00:20]} 77. Nf5 {[%clk 00:34:48]} {[%emt 00:00:18]} Ne4 {[%clk 00:07:36]}
{[%emt 00:00:27]} 78. Bd4 {[%clk 00:35:07]} {[%emt 00:00:10]} Ke6 {[%clk
00:07:57]} {[%emt 00:00:10]} 79. Ne3 {[%clk 00:35:23]} {[%emt 00:00:13]} Kf7
{[%clk 00:08:01]} {[%emt 00:00:27]} 80. f5 {[%clk 00:35:22]} {[%emt 00:00:31]}
Nd6 {[%clk 00:08:18]} {[%emt 00:00:13]} 81. Nd5 {[%clk 00:35:13]} {[%emt
00:00:38]} Ke8 {[%clk 00:08:19]} {[%emt 00:00:29]} 82. Kf4 {[%clk 00:35:17]}
{[%emt 00:00:27]} Nxf5 {[%clk 00:08:42]} {[%emt 00:00:06]} 83. Kxf5 {[%clk
00:35:43]} {[%emt 00:00:04]} Kd7 {[%clk 00:09:08]} {[%emt 00:00:04]} 84. Nb4
{[%clk 00:35:56]} {[%emt 00:00:18]} Kd6 {[%clk 00:09:34]} {[%emt 00:00:04]} 85.
Bb6 {[%clk 00:36:03]} {[%emt 00:00:22]} Kd7 {[%clk 00:09:58]} {[%emt 00:00:07]}
86. Ke5 {[%clk 00:36:29]} {[%emt 00:00:03]} Ke7 {[%clk 00:09:52]} {[%emt
00:00:36]} 87. Nc6+ {[%clk 00:36:44]} {[%emt 00:00:15]} Kd7 {[%clk 00:10:20]}
{[%emt 00:00:03]} 88. Kd5 {[%clk 00:36:28]} {[%emt 00:00:45]} Kc8 {[%clk
00:10:48]} {[%emt 00:00:03]} 89. Be3 {[%clk 00:36:52]} {[%emt 00:00:06]} Kb7
{[%clk 00:11:13]} {[%emt 00:00:05]} 90. Kd6 {[%clk 00:37:02]} {[%emt 00:00:20]}
Ka8 {[%clk 00:11:23]} {[%emt 00:00:20]} 91. Nd8 {[%clk 00:37:15]} {[%emt
00:00:16]} Kb8 {[%clk 00:11:51]} {[%emt 00:00:03]} 92. Kc6 {[%clk 00:37:37]}
{[%emt 00:00:09]} Ka8 {[%clk 00:12:17]} {[%emt 00:00:03]} 93. Ne6 {[%clk
00:38:01]} {[%emt 00:00:04]} Kb8 {[%clk 00:12:46]} {[%emt 00:00:02]} 94. Nc7
{[%clk 00:38:26]} {[%emt 00:00:05]} Kc8 {[%clk 00:13:13]} {[%emt 00:00:03]} 95.
Ba7 {[%clk 00:38:50]} {[%emt 00:00:06]} Kd8 {[%clk 00:13:41]} {[%emt 00:00:01]}
96. Nd5 {[%clk 00:38:52]} {[%emt 00:00:29]} Kc8 {[%clk 00:13:28]} {[%emt
00:00:44]} 97. Ne7+ {[%clk 00:39:13]} {[%emt 00:00:09]} Kd8 {[%clk 00:13:57]}
{[%emt 00:00:01]} 98. Kd6 {[%clk 00:39:36]} {[%emt 00:00:06]} Ke8 {[%clk
00:14:25]} {[%emt 00:00:02]} 99. Ke6 {[%clk 00:39:42]} {[%emt 00:00:24]} Kd8
{[%clk 00:14:47]} {[%emt 00:00:08]} 100. Bb6+ {[%clk 00:40:08]} {[%emt
00:00:05]} Ke8 {[%clk 00:15:15]} {[%emt 00:00:01]} 101. Nf5 {[%clk 00:40:19]}
{[%emt 00:00:19]} Kf8 {[%clk 00:15:43]} {[%emt 00:00:02]} 102. Bd8 {[%clk
00:40:12]} {[%emt 00:00:36]} Ke8 {[%clk 00:16:08]} {[%emt 00:00:05]} 103. Bf6
{[%clk 00:40:31]} {[%emt 00:00:12]} Kf8 {[%clk 00:16:36]} {[%emt 00:00:02]} 104.
Nd6 {[%clk 00:40:20]} {[%emt 00:00:40]} Kg8 {[%clk 00:17:05]} {[%emt 00:00:01]}
105. Bg5 {[%clk 00:40:35]} {[%emt 00:00:16]} Kg7 {[%clk 00:17:24]} {[%emt
00:00:12]} 106. Kf5 {[%clk 00:40:59]} {[%emt 00:00:05]} Kf8 {[%clk 00:17:46]}
{[%emt 00:00:09]} 107. Kg6 {[%clk 00:41:22]} {[%emt 00:00:06]} Kg8 {[%clk
00:18:13]} {[%emt 00:00:03]} 108. Bh6 {[%clk 00:41:45]} {[%emt 00:00:08]} Kh8
{[%clk 00:18:38]} {[%emt 00:00:04]} 109. Nf5 {[%clk 00:42:11]} {[%emt
00:00:05]} 1-0

[Event "FIDE Women's Grand Swiss 2023"]
[Site "Villa Marina, Douglas, Isle of Man, Isle Of Man"]
[Date "2023.10.28"]
[Round "4.6"]
[White "Efroimski, Marsel"]
[Black "Bulmaga, Irina"]
[Result "1/2-1/2"]
[TimeControl "40/90 + 30 + 30s/move"]
[WhiteFideId "2810964"]
[BlackFideId "13903063"]
[WhiteElo "2447"]
[BlackElo "2423"]

1. c4 {[%clk 01:30:59]} e6 {[%clk 01:30:30]} {[%emt 00:00:30]} 2. g3 {[%clk
01:31:25]} {[%emt 00:00:05]} Nf6 {[%clk 01:30:31]} {[%emt 00:00:28]} 3. Bg2
{[%clk 01:31:51]} {[%emt 00:00:04]} d5 {[%clk 01:30:41]} {[%emt 00:00:20]} 4.
Nf3 {[%clk 01:32:18]} {[%emt 00:00:04]} dxc4 {[%clk 01:30:11]} {[%emt
00:01:00]} 5. Qa4+ {[%clk 01:32:32]} {[%emt 00:00:16]} Bd7 {[%clk 01:30:03]}
{[%emt 00:00:37]} 6. Qxc4 {[%clk 01:32:57]} {[%emt 00:00:06]} c5 {[%clk
01:30:15]} {[%emt 00:00:17]} 7. Ne5 {[%clk 01:33:22]} {[%emt 00:00:05]} Qc8
{[%clk 01:30:18]} {[%emt 00:00:27]} 8. a4 {[%clk 01:32:59]} {[%emt 00:00:53]}
Nc6 {[%clk 01:28:59]} {[%emt 00:01:49]} 9. Nxd7 {[%clk 01:33:26]} {[%emt
00:00:04]} Qxd7 {[%clk 01:29:18]} {[%emt 00:00:10]} 10. a5 {[%clk 01:33:50]}
{[%emt 00:00:07]} Rc8 {[%clk 01:28:05]} {[%emt 00:01:42]} 11. Nc3 {[%clk
01:30:46]} {[%emt 00:03:34]} Be7 {[%clk 01:26:58]} {[%emt 00:01:36]} 12. d3
{[%clk 01:29:50]} {[%emt 00:01:26]} O-O {[%clk 01:24:53]} {[%emt 00:02:35]} 13.
O-O {[%clk 01:30:11]} {[%emt 00:00:09]} h6 {[%clk 01:21:11]} {[%emt 00:04:11]}
14. Bd2 {[%clk 01:19:29]} {[%emt 00:11:13]} Rfd8 {[%clk 01:16:49]} {[%emt
00:04:51]} 15. a6 {[%clk 01:17:06]} {[%emt 00:02:54]} b6 {[%clk 01:14:24]}
{[%emt 00:02:55]} 16. Qa4 {[%clk 01:17:10]} {[%emt 00:00:26]} Nd5 {[%clk
01:09:09]} {[%emt 00:05:44]} 17. Nxd5 {[%clk 01:04:36]} {[%emt 00:13:05]} exd5
{[%clk 01:09:31]} {[%emt 00:00:07]} 18. e3 {[%clk 00:59:58]} {[%emt 00:05:08]}
Bf6 {[%clk 01:02:38]} {[%emt 00:07:23]} 19. Rab1 {[%clk 00:59:41]} {[%emt
00:00:48]} Rb8 {[%clk 00:52:49]} {[%emt 00:10:19]} 20. Qb5 {[%clk 00:43:40]}
{[%emt 00:16:31]} Ne5 {[%clk 00:44:10]} {[%emt 00:09:08]} 21. Qxd7 {[%clk
00:43:58]} {[%emt 00:00:14]} Rxd7 {[%clk 00:44:32]} {[%emt 00:00:07]} 22. d4
{[%clk 00:44:20]} {[%emt 00:00:08]} cxd4 {[%clk 00:42:47]} {[%emt 00:02:16]} 23.
exd4 {[%clk 00:40:34]} {[%emt 00:04:16]} Nc6 {[%clk 00:43:08]} {[%emt
00:00:08]} 24. Be3 {[%clk 00:32:00]} {[%emt 00:09:05]} Nxd4 {[%clk 00:40:48]}
{[%emt 00:02:49]} 25. Bxd4 {[%clk 00:29:26]} {[%emt 00:03:04]} Bxd4 {[%clk
00:41:09]} {[%emt 00:00:08]} 26. Rfd1 {[%clk 00:29:54]} {[%emt 00:00:02]} Bf6
{[%clk 00:41:13]} {[%emt 00:00:26]} 27. Rxd5 {[%clk 00:30:12]} {[%emt
00:00:13]} Rxd5 {[%clk 00:41:03]} {[%emt 00:00:39]} 28. Bxd5 {[%clk 00:30:40]}
{[%emt 00:00:04]} Rd8 {[%clk 00:41:04]} {[%emt 00:00:28]} 29. Rd1 {[%clk
00:30:26]} {[%emt 00:00:44]} Kf8 {[%clk 00:41:09]} {[%emt 00:00:25]} 30. b4
{[%clk 00:30:14]} {[%emt 00:00:42]} b5 {[%clk 00:41:16]} {[%emt 00:00:23]} 31.
Bf3 {[%clk 00:30:18]} {[%emt 00:00:26]} Rxd1+ {[%clk 00:41:23]} {[%emt
00:00:23]} 1/2-1/2

[Event "FIDE Women's Grand Swiss 2023"]
[Site "Villa Marina, Douglas, Isle of Man, Isle Of Man"]
[Date "2023.10.28"]
[Round "4.7"]
[White "Javakhishvili, Lela"]
[Black "Tsolakidou, Stavroula"]
[Result "1/2-1/2"]
[TimeControl "40/90 + 30 + 30s/move"]
[WhiteFideId "13601458"]
[BlackFideId "4264312"]
[WhiteElo "2437"]
[BlackElo "2385"]

1. d4 {[%clk 01:30:55]} {[%emt 00:00:04]} Nf6 {[%clk 01:30:51]} {[%emt
00:00:09]} 2. Nf3 {[%clk 01:31:15]} {[%emt 00:00:11]} g6 {[%clk 01:31:07]}
{[%emt 00:00:13]} 3. Nbd2 {[%clk 01:31:26]} {[%emt 00:00:20]} Bg7 {[%clk
01:27:18]} {[%emt 00:04:19]} 4. e4 {[%clk 01:31:48]} {[%emt 00:00:08]} O-O
{[%clk 01:26:53]} {[%emt 00:00:54]} 5. Bd3 {[%clk 01:31:34]} {[%emt 00:00:44]}
d6 {[%clk 01:26:35]} {[%emt 00:00:48]} 6. O-O {[%clk 01:31:37]} {[%emt
00:00:27]} c5 {[%clk 01:19:18]} {[%emt 00:07:48]} 7. c3 {[%clk 01:29:57]}
{[%emt 00:02:10]} cxd4 {[%clk 01:16:35]} {[%emt 00:03:13]} 8. cxd4 {[%clk
01:30:17]} {[%emt 00:00:10]} Nc6 {[%clk 01:16:19]} {[%emt 00:00:45]} 9. a3
{[%clk 01:22:10]} {[%emt 00:08:38]} Nd7 {[%clk 00:55:11]} {[%emt 00:21:37]} 10.
Nb3 {[%clk 01:15:09]} {[%emt 00:07:31]} a5 {[%clk 00:47:13]} {[%emt 00:08:28]}
11. Be3 {[%clk 01:14:19]} {[%emt 00:01:20]} a4 {[%clk 00:45:23]} {[%emt
00:02:21]} 12. Nc1 {[%clk 01:07:46]} {[%emt 00:07:02]} Nb6 {[%clk 00:41:12]}
{[%emt 00:04:41]} 13. h3 {[%clk 01:05:33]} {[%emt 00:02:43]} f5 {[%clk
00:39:22]} {[%emt 00:02:20]} 14. exf5 {[%clk 01:01:02]} {[%emt 00:05:01]} Bxf5
{[%clk 00:36:00]} {[%emt 00:03:52]} 15. Bxf5 {[%clk 00:57:25]} {[%emt
00:04:07]} Rxf5 {[%clk 00:36:25]} {[%emt 00:00:05]} 16. Ne2 {[%clk 00:56:52]}
{[%emt 00:01:03]} Nd5 {[%clk 00:26:05]} {[%emt 00:10:50]} 17. Ng3 {[%clk
00:54:34]} {[%emt 00:02:48]} Rf8 {[%clk 00:26:01]} {[%emt 00:00:34]} 18. Qd3
{[%clk 00:50:45]} {[%emt 00:04:18]} Qd7 {[%clk 00:23:58]} {[%emt 00:02:34]} 19.
Rae1 {[%clk 00:48:44]} {[%emt 00:02:30]} Rxf3 {[%clk 00:20:00]} {[%emt
00:04:28]} 20. gxf3 {[%clk 00:49:07]} {[%emt 00:00:06]} Qxh3 {[%clk 00:20:08]}
{[%emt 00:00:23]} 21. Rd1 {[%clk 00:39:20]} {[%emt 00:10:18]} Nxd4 {[%clk
00:10:30]} {[%emt 00:10:08]} 22. Qe4 {[%clk 00:39:39]} {[%emt 00:00:10]} Nxe3
{[%clk 00:09:37]} {[%emt 00:01:23]} 23. Qxe3 {[%clk 00:40:00]} {[%emt
00:00:09]} e5 {[%clk 00:09:49]} {[%emt 00:00:18]} 24. Qe4 {[%clk 00:37:42]}
{[%emt 00:02:47]} Rf8 {[%clk 00:08:31]} {[%emt 00:01:49]} 25. Rd3 {[%clk
00:37:56]} {[%emt 00:00:17]} Qd7 {[%clk 00:04:42]} {[%emt 00:04:18]} 26. Qd5+
{[%clk 00:36:20]} {[%emt 00:02:06]} Kh8 {[%clk 00:04:42]} {[%emt 00:00:30]} 27.
Kg2 {[%clk 00:35:00]} {[%emt 00:01:49]} Ne6 {[%clk 00:03:37]} {[%emt 00:01:35]}
28. Ne2 {[%clk 00:35:24]} {[%emt 00:00:06]} Qe7 {[%clk 00:03:21]} {[%emt
00:00:47]} 29. Rg1 {[%clk 00:33:49]} {[%emt 00:02:05]} Rd8 {[%clk 00:02:54]}
{[%emt 00:00:56]} 30. Kf1 {[%clk 00:33:43]} {[%emt 00:00:35]} Nc5 {[%clk
00:01:29]} {[%emt 00:01:55]} 31. Re3 {[%clk 00:31:58]} {[%emt 00:02:16]} Qd7
{[%clk 00:00:58]} {[%emt 00:01:02]} 32. Rg4 {[%clk 00:28:50]} {[%emt 00:03:37]}
Rf8 {[%clk 00:01:04]} {[%emt 00:00:24]} 33. Kg2 {[%clk 00:28:27]} {[%emt
00:00:53]} b6 {[%clk 00:00:38]} {[%emt 00:00:56]} 34. Rb4 {[%clk 00:26:56]}
{[%emt 00:02:01]} Qc7 {[%clk 00:00:36]} {[%emt 00:00:33]} 35. Rg4 {[%clk
00:26:12]} {[%emt 00:01:13]} Qd7 {[%clk 00:00:35]} {[%emt 00:00:32]} 1/2-1/2

[Event "FIDE Women's Grand Swiss 2023"]
[Site "Villa Marina, Douglas, Isle of Man, Isle Of Man"]
[Date "2023.10.28"]
[Round "4.8"]
[White "Roebers, Eline"]
[Black "Injac, Teodora"]
[Result "0-1"]
[TimeControl "40/90 + 30 + 30s/move"]
[WhiteFideId "1058401"]
[BlackFideId "932400"]
[WhiteElo "2390"]
[BlackElo "2426"]

1. e4 {[%clk 01:30:59]} e5 {[%clk 01:30:52]} {[%emt 00:00:08]} 2. Nf3 {[%clk
01:31:27]} {[%emt 00:00:03]} Nc6 {[%clk 01:31:16]} {[%emt 00:00:06]} 3. Bb5
{[%clk 01:31:49]} {[%emt 00:00:08]} Nf6 {[%clk 01:31:19]} {[%emt 00:00:27]} 4.
d3 {[%clk 01:30:08]} {[%emt 00:02:11]} Bc5 {[%clk 01:31:15]} {[%emt 00:00:34]}
5. O-O {[%clk 01:30:20]} {[%emt 00:00:19]} Nd4 {[%clk 01:28:32]} {[%emt
00:03:13]} 6. Nxd4 {[%clk 01:30:33]} {[%emt 00:00:17]} Bxd4 {[%clk 01:28:56]}
{[%emt 00:00:05]} 7. c3 {[%clk 01:31:01]} {[%emt 00:00:03]} Bb6 {[%clk
01:29:06]} {[%emt 00:00:20]} 8. Ba4 {[%clk 01:31:28]} {[%emt 00:00:03]} c6
{[%clk 01:15:12]} {[%emt 00:14:24]} 9. Na3 {[%clk 01:31:38]} {[%emt 00:00:20]}
d6 {[%clk 01:09:40]} {[%emt 00:06:02]} 10. Bc2 {[%clk 01:32:03]} {[%emt
00:00:05]} h6 {[%clk 01:02:04]} {[%emt 00:08:05]} 11. Nc4 {[%clk 01:20:57]}
{[%emt 00:11:36]} Bc7 {[%clk 01:02:18]} {[%emt 00:00:16]} 12. f4 {[%clk
01:12:54]} {[%emt 00:08:33]} Be6 {[%clk 00:51:53]} {[%emt 00:10:55]} 13. fxe5
{[%clk 01:00:06]} {[%emt 00:13:18]} dxe5 {[%clk 00:52:12]} {[%emt 00:00:11]} 14.
Ne3 {[%clk 01:00:12]} {[%emt 00:00:24]} Qd7 {[%clk 00:44:27]} {[%emt 00:08:15]}
15. a4 {[%clk 00:57:59]} {[%emt 00:02:44]} a5 {[%clk 00:42:10]} {[%emt
00:02:47]} 16. Nf5 {[%clk 00:53:15]} {[%emt 00:05:14]} Bxf5 {[%clk 00:37:24]}
{[%emt 00:05:15]} 17. Rxf5 {[%clk 00:53:35]} {[%emt 00:00:10]} Bb6+ {[%clk
00:37:53]} {[%emt 00:00:01]} 18. Kh1 {[%clk 00:53:53]} {[%emt 00:00:13]} O-O-O
{[%clk 00:37:56]} {[%emt 00:00:26]} 19. Qf3 {[%clk 00:53:13]} {[%emt 00:01:10]}
Rde8 {[%clk 00:23:10]} {[%emt 00:15:16]} 20. Rb1 {[%clk 00:50:35]} {[%emt
00:03:08]} h5 {[%clk 00:22:25]} {[%emt 00:01:15]} 21. Be3 {[%clk 00:46:24]}
{[%emt 00:04:40]} Bxe3 {[%clk 00:20:19]} {[%emt 00:02:35]} 22. Qxe3 {[%clk
00:46:50]} {[%emt 00:00:05]} Kb8 {[%clk 00:15:20]} {[%emt 00:05:29]} 23. Qc5
{[%clk 00:43:50]} {[%emt 00:03:29]} Nd5 {[%clk 00:09:10]} {[%emt 00:06:40]} 24.
Rf3 {[%clk 00:38:01]} {[%emt 00:06:19]} Nf4 {[%clk 00:09:00]} {[%emt 00:00:41]}
25. b4 {[%clk 00:36:31]} {[%emt 00:02:00]} axb4 {[%clk 00:09:01]} {[%emt
00:00:29]} 26. Rxb4 {[%clk 00:36:51]} {[%emt 00:00:11]} Qe7 {[%clk 00:06:29]}
{[%emt 00:03:02]} 27. Qg1 {[%clk 00:34:35]} {[%emt 00:02:45]} Rh6 {[%clk
00:04:47]} {[%emt 00:02:13]} 28. Qf1 {[%clk 00:30:41]} {[%emt 00:04:23]} h4
{[%clk 00:04:59]} {[%emt 00:00:18]} 29. a5 {[%clk 00:26:40]} {[%emt 00:04:31]}
c5 {[%clk 00:05:07]} {[%emt 00:00:21]} 30. Rb5 {[%clk 00:25:42]} {[%emt
00:01:28]} g5 {[%clk 00:05:22]} {[%emt 00:00:14]} 31. d4 {[%clk 00:23:46]}
{[%emt 00:02:27]} g4 {[%clk 00:04:26]} {[%emt 00:01:26]} 32. Rxf4 {[%clk
00:22:04]} {[%emt 00:02:12]} exf4 {[%clk 00:04:53]} {[%emt 00:00:04]} 33. Qxf4+
{[%clk 00:22:31]} {[%emt 00:00:04]} Qd6 {[%clk 00:05:12]} {[%emt 00:00:11]} 34.
e5 {[%clk 00:22:06]} {[%emt 00:00:55]} Rf6 {[%clk 00:04:28]} {[%emt 00:01:14]}
35. Qc1 {[%clk 00:21:51]} {[%emt 00:00:45]} Qa6 {[%clk 00:02:43]} {[%emt
00:02:15]} 36. c4 {[%clk 00:21:03]} {[%emt 00:01:18]} Rf2 {[%clk 00:01:56]}
{[%emt 00:01:17]} 37. Be4 {[%clk 00:20:10]} {[%emt 00:01:23]} Re7 {[%clk
00:02:19]} {[%emt 00:00:06]} 38. dxc5 {[%clk 00:15:09]} {[%emt 00:05:32]} Rxe5
{[%clk 00:01:27]} {[%emt 00:01:22]} 39. Kg1 {[%clk 00:05:25]} {[%emt 00:10:14]}
Rxe4 {[%clk 00:01:21]} {[%emt 00:00:36]} 40. Kxf2 {[%clk 00:05:12]} {[%emt
00:00:43]} Qf6+ {[%clk 00:01:18]} {[%emt 00:00:32]} 41. Kg1 {[%clk 00:05:36]}
{[%emt 00:00:06]} Re2 {[%clk 00:24:14]} {[%emt 00:07:34]} 42. Qf1 {[%clk
00:31:38]} {[%emt 00:04:28]} Qd4+ {[%clk 00:24:26]} {[%emt 00:00:18]} 43. Kh1
{[%clk 00:32:01]} {[%emt 00:00:07]} Qe4 {[%clk 00:20:04]} {[%emt 00:04:52]} 44.
a6 {[%clk 00:32:24]} {[%emt 00:00:08]} h3 {[%clk 00:18:13]} {[%emt 00:02:20]}
0-1